fUST/lending_fUST_20250104
["ID","MTS","AMOUNT","RATE_DAILY","PERIOD"]
[347565792,1735920638684,-500.0,0.00019178,2]
[347565794,1735920638693,-503.14849776,0.00019178,2]
[347565796,1735920638702,-500.0,0.00019178,2]
[347565798,1735920638712,-500.0,0.00019178,2]
[347565800,1735920638721,-500.0,0.00019178,2]
[347565802,1735920638730,-500.0,0.00019178,2]
[347565804,1735920638739,-500.0,0.00019178,2]
[347565806,1735920638749,-548.87002097,0.00019178,2]
[347565808,1735920638758,-500.0,0.00019178,2]
[347565810,1735920638767,-502.32198646,0.00019178,2]
[347565813,1735920638778,-501.77347753,0.00019178,2]
[347565815,1735920638787,-3603.94,0.00019178,2]
[347565817,1735920638797,-500.0,0.00019178,2]
[347565819,1735920638806,-500.43045893,0.00019178,2]
[347565821,1735920638815,-399.11330782,0.00019178,2]
[347565823,1735920638827,-100.88669218,0.00019178,2]
[347565825,1735920638836,-500.0,0.00019178,2]
[347565827,1735920638845,-531.64,0.00019178,2]
[347565829,1735920638854,-531.64,0.00019178,2]
[347565831,1735920638863,-531.64,0.00019178,2]
[347565833,1735920638872,-531.64,0.00019178,2]
[347565835,1735920638881,-531.64,0.00019178,2]
[347565837,1735920638890,-531.64,0.00019178,2]
[347565839,1735920638899,-531.64,0.00019178,2]
[347565841,1735920638908,-117.29348966,0.00019178,2]
[347565843,1735920638922,-414.34651034,0.00019178,2]
[347565845,1735920638931,-500.0,0.00019178,2]
[347565847,1735920638941,-381.39077677,0.00019178,2]
[347565849,1735920638952,-118.60922323,0.00019178,2]
[347565851,1735920638962,-500.0,0.00019178,2]
[347565853,1735920638971,-500.0,0.00019178,2]
[347565855,1735920638981,-261.39077627,0.00019178,2]
[347565858,1735920638992,-238.60922373,0.00019178,2]
[347565860,1735920639001,-500.0,0.00019178,2]
[347565862,1735920639010,-500.0,0.00019178,2]
[347565864,1735920639019,-207.66327687,0.00019178,2]
[347565866,1735920639031,-758.4281794,0.00019178,2]
[347565869,1735920639049,-2678.08854373,0.00019178,2]
[347565871,1735920639058,-500.0,0.00019178,2]
[347565873,1735920639067,-444.8936842,0.00019178,2]
[347565875,1735920639076,-500.0,0.00019178,2]
[347565877,1735920639085,-673.21,0.00019178,2]
[347565879,1735920639095,-500.0,0.00019178,2]
[347565881,1735920639103,-500.0,0.00019178,2]
[347565883,1735920639113,-500.0,0.00019178,2]
[347565885,1735920639122,-500.0,0.00019178,2]
[347565887,1735920639131,-500.47267232,0.00019178,2]
[347565889,1735920639140,-500.0,0.00019178,2]
[347565891,1735920639149,-500.0,0.00019178,2]
[347565893,1735920639159,-502.6899028,0.00019178,2]
[347565895,1735920639172,-500.0,0.00019178,2]
[347565897,1735920639182,-500.0,0.00019178,2]
[347565899,1735920639191,-892.93,0.00019178,2]
[347565901,1735920639200,-500.0,0.00019178,2]
[347565903,1735920639210,-501.24527207,0.00019178,2]
[347565905,1735920639221,-500.0,0.00019178,2]
[347565907,1735920639231,-500.0,0.00019178,2]
[347565909,1735920639240,-500.0,0.00019178,2]
[347565911,1735920639251,-500.0,0.00019178,2]
[347565912,1735920639260,-500.0,0.00019178,2]
[347565915,1735920639270,-500.0,0.00019178,2]
[347565916,1735920639280,-500.0,0.00019178,2]
[347565918,1735920639290,-500.0,0.00019178,2]
[347565921,1735920639300,-1586.15,0.00019178,2]
[347565922,1735920639310,-6470.67,0.00019178,2]
[347565924,1735920639320,-1586.15,0.00019178,2]
[347565926,1735920639329,-500.0,0.00019178,2]
[347565928,1735920639339,-1586.15,0.00019178,2]
[347565930,1735920639348,-501.79322682,0.00019178,2]
[347565932,1735920639358,-1586.15,0.00019178,2]
[347565934,1735920639368,-501.58592017,0.00019178,2]
[347565936,1735920639377,-1586.15,0.00019178,2]
[347565938,1735920639387,-500.0,0.00019178,2]
[347565940,1735920639397,-500.0,0.00019178,2]
[347565942,1735920639406,-1586.15,0.00019178,2]
[347565945,1735920639418,-500.0,0.00019178,2]
[347565946,1735920639427,-500.0,0.00019178,2]
[347565948,1735920639437,-500.0,0.00019178,2]
[347565950,1735920639447,-207.93481199,0.00019178,2]
[347565953,1735920639457,-500.0,0.00019178,2]
[347565955,1735920639468,-500.0,0.00019178,2]
[347565957,1735920639478,-500.0,0.00019178,2]
[347565959,1735920639487,-500.0,0.00019178,2]
[347565961,1735920639497,-500.0,0.00019178,2]
[347565963,1735920639507,-500.0,0.00019178,2]
[347565965,1735920639516,-500.0,0.00019178,2]
[347565967,1735920639526,-751.18,0.00019178,2]
[347565969,1735920639535,-500.0,0.00019178,2]
[347565971,1735920639544,-500.0,0.00019178,2]
[347565973,1735920639555,-500.0,0.00019178,2]
[347565975,1735920639564,-2211.08,0.00019178,2]
[347565977,1735920639573,-500.0,0.00019178,2]
[347565979,1735920639582,-500.0,0.00019178,2]
[347565981,1735920639592,-500.0,0.00019178,2]
[347565983,1735920639601,-500.0,0.00019178,2]
[347565985,1735920639610,-500.0,0.00019178,2]
[347565987,1735920639619,-584.95,0.00019178,2]
[347565988,1735920639628,-500.0,0.00019178,2]
[347565990,1735920639637,-500.0,0.00019178,2]
[347565993,1735920639647,-218.24972065,0.00019178,2]
[347565995,1735920639656,-500.0,0.00019178,2]
[347565997,1735920639667,-500.0,0.00019178,2]
[347565999,1735920639677,-500.0,0.00019178,2]
[347566000,1735920639687,-500.0,0.00019178,2]
[347566002,1735920639696,-1393.72,0.00019178,2]
[347566004,1735920639705,-500.0,0.00019178,2]
[347566006,1735920639715,-500.0,0.00019178,2]
[347566009,1735920639724,-500.0,0.00019178,2]
[347566011,1735920639733,-500.0,0.00019178,2]
[347566013,1735920639742,-500.0,0.00019178,2]
[347566015,1735920639751,-500.0,0.00019178,2]
[347566017,1735920639760,-500.0,0.00019178,2]
[347566019,1735920639770,-500.0,0.00019178,2]
[347566020,1735920639779,-500.0,0.00019178,2]
[347566022,1735920639789,-627.75794801,0.00019178,2]
[347566025,1735920639798,-500.0,0.00019178,2]
[347566027,1735920639807,-500.0,0.00019178,2]
[347566029,1735920639816,-500.0,0.00019178,2]
[347566031,1735920639826,-500.0,0.00019178,2]
[347566033,1735920639835,-500.0,0.00019178,2]
[347566034,1735920639844,-500.0,0.00019178,2]
[347566036,1735920639854,-500.0,0.00019178,2]
[347566038,1735920639863,-1078.67,0.00019178,2]
[347566040,1735920639872,-502.31855057,0.00019178,2]
[347566044,1735920639881,-500.0,0.00019178,2]
[347566045,1735920639891,-500.0,0.00019178,2]
[347566048,1735920639900,-385.27445608,0.00019178,2]
[347566049,1735920639909,-500.0,0.00019178,2]
[347566052,1735920639922,-500.0,0.00019178,2]
[347566053,1735920639931,-500.0,0.00019178,2]
[347566055,1735920639940,-500.0,0.00019178,2]
[347566057,1735920639949,-500.0,0.00019178,2]
[347566059,1735920639958,-500.0,0.00019178,2]
[347566061,1735920639967,-500.0,0.00019178,2]
[347566063,1735920639976,-500.0,0.00019178,2]
[347566065,1735920639985,-500.0,0.00019178,2]
[347566067,1735920639994,-500.0,0.00019178,2]
[347566068,1735920640004,-275.48333012,0.00019178,2]
[347566069,1735920640013,-2287.73,0.00019178,2]
[347566070,1735920640023,-500.0,0.00019178,2]
[347566071,1735920640033,-500.0,0.00019178,2]
[347566072,1735920640043,-500.0,0.00019178,2]
[347566073,1735920640052,-500.0,0.00019178,2]
[347566075,1735920640061,-500.0,0.00019178,2]
[347566077,1735920640071,-500.0,0.00019178,2]
[347566079,1735920640080,-500.0,0.00019178,2]
[347566081,1735920640090,-500.0,0.00019178,2]
[347566083,1735920640099,-500.0,0.00019178,2]
[347566085,1735920640109,-2708.2,0.00019178,2]
[347566087,1735920640118,-500.0,0.00019178,2]
[347566089,1735920640128,-500.0,0.00019178,2]
[347566091,1735920640137,-500.93232124,0.00019178,2]
[347566093,1735920640146,-500.0,0.00019178,2]
[347566095,1735920640155,-504.4624921,0.00019178,2]
[347566097,1735920640169,-526.17531495,0.00019178,2]
[347566099,1735920640178,-500.0,0.00019178,2]
[347566101,1735920640187,-500.0,0.00019178,2]
[347566103,1735920640197,-500.0,0.00019178,2]
[347566105,1735920640207,-500.0,0.00019178,2]
[347566107,1735920640216,-500.0,0.00019178,2]
[347566109,1735920640227,-500.0,0.00019178,2]
[347566111,1735920640236,-500.0,0.00019178,2]
[347566113,1735920640246,-500.0,0.00019178,2]
[347566115,1735920640255,-1928.07,0.00019178,2]
[347566117,1735920640265,-527.68,0.00019178,2]
[347566119,1735920640274,-500.0,0.00019178,2]
[347566121,1735920640284,-500.0,0.00019178,2]
[347566123,1735920640294,-1248.05,0.00019178,2]
[347566125,1735920640303,-500.0,0.00019178,2]
[347566128,1735920640313,-500.0,0.00019178,2]
[347566130,1735920640322,-477.00644524,0.00019178,2]
[347566132,1735920640331,-500.0,0.00019178,2]
[347566134,1735920640340,-704.95,0.00019178,2]
[347566136,1735920640350,-562.92,0.00019178,2]
[347566138,1735920640359,-500.0,0.00019178,2]
[347566140,1735920640368,-500.0,0.00019178,2]
[347566142,1735920640377,-500.0,0.00019178,2]
[347566144,1735920640390,-502.36815481,0.00019178,2]
[347566146,1735920640402,-203.45565909,0.00019178,2]
[347566148,1735920640413,-500.0,0.00019178,2]
[347566150,1735920640423,-500.0,0.00019178,2]
[347566152,1735920640433,-2888.12,0.00019178,2]
[347566154,1735920640445,-500.0,0.00019178,2]
[347566156,1735920640454,-502.76336571,0.00019178,2]
[347566158,1735920640465,-500.0,0.00019178,2]
[347566160,1735920640474,-500.0,0.00019178,2]
[347566162,1735920640484,-500.0,0.00019178,2]
[347566164,1735920640494,-500.0,0.00019178,2]
[347566166,1735920640504,-500.0,0.00019178,2]
[347566168,1735920640513,-500.0,0.00019178,2]
[347566170,1735920640522,-500.0,0.00019178,2]
[347566172,1735920640534,-2580.17,0.00019178,2]
[347566174,1735920640543,-158.797415,0.00019178,2]
[347566176,1735920640552,-172.5632663,0.00019178,2]
[347566178,1735920640561,-277.02698521,0.0001919,2]
[347566180,1735920640571,-1274.29,0.000192,2]
[347566182,1735920640580,-471.83,0.0001926,2]
[347566184,1735920640589,-500.0,0.00019299,3]
[347566186,1735920640599,-678.2,0.00019299,3]
[347566188,1735920640608,-531.64,0.00019299,3]
[347566190,1735920640617,-1586.15,0.00019299,3]
[347566192,1735920640626,-1586.15,0.00019299,3]
[347566194,1735920640636,-637.0,0.000193,8]
[347566196,1735920640645,-500.0,0.00019317,3]
[347566198,1735920640654,-678.2,0.00019317,3]
[347566201,1735920640666,-531.64,0.00019317,3]
[347566202,1735920640676,-151.0,0.000194,2]
[347566205,1735920640685,-151.0,0.000194,2]
[347566207,1735920640695,-151.0,0.000194,2]
[347566209,1735920640704,-151.0,0.000194,2]
[347566210,1735920640713,-599.45655816,0.00019429,2]
[347566213,1735920640723,-500.0,0.00019449,3]
[347566214,1735920640732,-678.2,0.00019449,3]
[347566217,1735920640742,-531.64,0.00019449,3]
[347566219,1735920640751,-1586.15,0.0001945,3]
[347566221,1735920640760,-500.0,0.00019451,3]
[347566223,1735920640769,-500.0,0.00019451,3]
[347566225,1735920640779,-500.0,0.00019451,3]
[347566227,1735920640788,-500.0,0.00019451,3]
[347566229,1735920640797,-678.2,0.00019451,3]
[347566231,1735920640806,-678.2,0.00019451,3]
[347566233,1735920640815,-678.2,0.00019451,3]
[347566235,1735920640825,-678.2,0.00019451,3]
[347566237,1735920640835,-678.2,0.00019451,3]
[347566239,1735920640843,-531.64,0.00019451,3]
[347566241,1735920640854,-531.64,0.00019451,3]
[347566243,1735920640863,-531.64,0.00019451,3]
[347566245,1735920640872,-531.64,0.00019451,3]
[347566247,1735920640882,-531.64,0.00019451,3]
[347566249,1735920640892,-448.31862499,0.00019451,2]
[347566265,1735920641033,-1586.15,0.00019451,3]
[347566267,1735920641043,-1586.15,0.00019451,3]
[347566269,1735920641052,-1586.15,0.00019451,3]
[347566271,1735920641061,-1586.15,0.00019451,3]
[347566274,1735920641072,-1586.15,0.00019451,3]
[347566276,1735920641082,-500.0,0.00019452,3]
[347566278,1735920641092,-500.0,0.00019452,3]
[347566280,1735920641101,-500.0,0.00019452,3]
[347566282,1735920641110,-500.0,0.00019452,3]
[347566284,1735920641119,-500.0,0.00019452,3]
[347566286,1735920641128,-500.0,0.00019452,3]
[347566288,1735920641137,-500.0,0.00019452,3]
[347566290,1735920641146,-500.0,0.00019452,3]
[347566292,1735920641156,-527.78,0.00019452,3]
[347566294,1735920641166,-500.0,0.00019452,3]
[347566296,1735920641179,-500.0,0.00019452,3]
[347566298,1735920641190,-151.0,0.00019452,2]
[347566300,1735920641200,-151.0,0.00019452,2]
[347566302,1735920641211,-151.0,0.00019452,2]
[347566304,1735920641221,-500.0,0.00019452,3]
[347566306,1735920641231,-151.0,0.00019452,2]
[347566308,1735920641242,-151.0,0.00019452,2]
[347566310,1735920641254,-162.204318,0.00019452,2]
[347566312,1735920641265,-500.0,0.00019452,3]
[347566314,1735920641275,-1108.67,0.00019452,3]
[347566317,1735920641286,-500.0,0.00019452,3]
[347566319,1735920641296,-168.18687102,0.00019452,3]
[347566321,1735920641306,-500.0,0.00019452,3]
[347566322,1735920641316,-500.0,0.00019452,3]
[347566325,1735920641325,-500.0,0.00019452,3]
[347566327,1735920641336,-7289.04,0.00019452,3]
[347566329,1735920641345,-500.0,0.00019452,3]
[347566331,1735920641355,-520.37,0.00019452,3]
[347566333,1735920641364,-500.0,0.00019452,3]
[347566335,1735920641374,-500.0,0.00019452,3]
[347566337,1735920641383,-500.0,0.00019452,3]
[347566339,1735920641394,-585.87511532,0.00019452,3]
[347566341,1735920641402,-500.0,0.00019452,3]
[347566343,1735920641413,-500.0,0.00019452,3]
[347566345,1735920641422,-500.0,0.00019452,3]
[347566347,1735920641432,-625.73,0.00019452,3]
[347566349,1735920641442,-500.0,0.00019452,3]
[347566351,1735920641451,-573.21,0.00019452,3]
[347566353,1735920641461,-1379.31,0.00019452,3]
[347566355,1735920641470,-500.0,0.00019452,3]
[347566357,1735920641480,-508.25873549,0.00019452,3]
[347566359,1735920641490,-500.0,0.00019452,3]
[347566361,1735920641499,-500.0,0.00019452,3]
[347566363,1735920641509,-500.0,0.00019452,3]
[347566365,1735920641519,-500.0,0.00019452,3]
[347566368,1735920641529,-500.0,0.00019452,3]
[347566370,1735920641538,-500.0,0.00019452,3]
[347566372,1735920641550,-500.0,0.00019452,3]
[347566374,1735920641559,-500.0,0.00019452,3]
[347566376,1735920641569,-500.0,0.00019452,3]
[347566378,1735920641579,-349.1,0.00019452,3]
[347566380,1735920641588,-500.0,0.00019452,3]
[347566382,1735920641598,-651.01,0.00019452,3]
[347566384,1735920641608,-500.0,0.00019452,3]
[347566386,1735920641617,-500.0,0.00019452,3]
[347566388,1735920641626,-500.0,0.00019452,3]
[347566390,1735920641636,-978.35,0.00019452,3]
[347566392,1735920641645,-500.0,0.00019452,3]
[347566394,1735920641655,-962.5,0.00019452,3]
[347566396,1735920641666,-500.0,0.00019452,3]
[347566398,1735920641675,-938.77,0.00019452,3]
[347566400,1735920641685,-500.0,0.00019452,3]
[347566402,1735920641694,-500.0,0.00019452,3]
[347566404,1735920641704,-500.0,0.00019452,3]
[347566406,1735920641714,-500.0,0.00019452,3]
[347566408,1735920641723,-500.0,0.00019452,3]
[347566410,1735920641732,-592.06,0.00019452,3]
[347566412,1735920641742,-500.0,0.00019452,3]
[347566414,1735920641752,-500.0,0.00019452,3]
[347566416,1735920641762,-500.0,0.00019452,3]
[347566418,1735920641771,-500.0,0.00019452,3]
[347566420,1735920641782,-500.0,0.00019452,3]
[347566423,1735920641791,-533.76,0.00019452,3]
[347566424,1735920641801,-500.0,0.00019452,3]
[347566427,1735920641810,-500.0,0.00019452,3]
[347566429,1735920641820,-500.0,0.00019452,3]
[347566431,1735920641829,-500.0,0.00019452,3]
[347566433,1735920641838,-509.07,0.00019452,3]
[347566435,1735920641849,-500.0,0.00019452,3]
[347566436,1735920641860,-500.0,0.00019452,3]
[347566439,1735920641870,-500.0,0.00019452,3]
[347566441,1735920641879,-500.0,0.00019452,3]
[347566443,1735920641888,-575.25,0.00019452,3]
[347566445,1735920641898,-1001.39,0.00019452,3]
[347566447,1735920641907,-500.0,0.00019452,3]
[347566449,1735920641919,-500.0,0.00019452,3]
[347566451,1735920641928,-626.4,0.00019452,3]
[347566453,1735920641938,-500.0,0.00019452,3]
[347566455,1735920641947,-844.91,0.00019452,3]
[347566457,1735920641957,-500.0,0.00019452,3]
[347566459,1735920641966,-500.0,0.00019452,3]
[347566461,1735920641976,-578.99,0.00019452,3]
[347566463,1735920641985,-500.0,0.00019452,3]
[347566465,1735920641995,-561.58,0.00019452,3]
[347566467,1735920642006,-500.0,0.00019452,3]
[347566469,1735920642015,-855.61,0.00019452,3]
[347566471,1735920642025,-500.69436024,0.00019452,2]
[347566473,1735920642034,-500.0,0.00019452,3]
[347566475,1735920642044,-500.0,0.00019452,3]
[347566477,1735920642053,-500.0,0.00019452,3]
[347566479,1735920642062,-500.0,0.00019452,3]
[347566481,1735920642071,-500.0,0.00019452,3]
[347566484,1735920642081,-500.0,0.00019452,3]
[347566486,1735920642091,-1034.41,0.00019452,3]
[347566488,1735920642100,-500.0,0.00019452,3]
[347566490,1735920642109,-500.0,0.00019452,3]
[347566491,1735920642119,-584.26,0.00019452,3]
[347566494,1735920642129,-500.0,0.00019452,3]
[347566496,1735920642138,-1288.26,0.00019452,3]
[347566498,1735920642148,-263.25,0.00019452,3]
[347566500,1735920642157,-500.0,0.00019452,3]
[347566502,1735920642172,-761.7,0.00019452,3]
[347566504,1735920642181,-500.0,0.00019452,3]
[347566506,1735920642190,-551.13243469,0.00019452,3]
[347566508,1735920642199,-373.37975935,0.00019452,3]
[347566510,1735920642209,-1348.39,0.00019452,3]
[347566512,1735920642219,-1361.92,0.00019452,2]
[347566514,1735920642229,-500.0,0.00019452,3]
[347566516,1735920642238,-500.0,0.00019452,3]
[347566518,1735920642248,-500.0,0.00019452,3]
[347566520,1735920642258,-576.11188822,0.00019452,3]
[347566522,1735920642268,-1259.08,0.00019452,3]
[347566524,1735920642277,-500.0,0.00019452,3]
[347566526,1735920642287,-285.209168,0.00019452,2]
[347566528,1735920642297,-500.0,0.00019452,3]
[347566530,1735920642306,-500.0,0.00019452,3]
[347566532,1735920642316,-500.0,0.00019452,3]
[347566534,1735920642326,-500.0,0.00019452,3]
[347566536,1735920642335,-500.0,0.00019452,3]
[347566539,1735920642345,-151.0,0.00019452,2]
[347566541,1735920642355,-500.0,0.00019452,3]
[347566543,1735920642364,-500.0,0.00019452,3]
[347566545,1735920642374,-2507.3,0.00019452,3]
[347566547,1735920642383,-500.0,0.00019452,3]
[347566549,1735920642392,-500.0,0.00019452,3]
[347566551,1735920642402,-500.0,0.00019452,3]
[347566553,1735920642413,-500.0,0.00019452,3]
[347566554,1735920642422,-1105.54,0.00019452,3]
[347566556,1735920642431,-500.0,0.00019452,3]
[347566558,1735920642442,-300.0,0.00019452,3]
[347566560,1735920642452,-501.82,0.00019452,2]
[347566562,1735920642462,-500.0,0.00019452,3]
[347566565,1735920642471,-500.0,0.00019452,3]
[347566567,1735920642481,-3603.94,0.00019452,3]
[347566569,1735920642491,-500.0,0.00019452,3]
[347566571,1735920642500,-500.0,0.00019452,3]
[347566573,1735920642509,-603.21630404,0.00019452,3]
[347566575,1735920642519,-500.0,0.00019452,3]
[347566577,1735920642529,-3644.18,0.00019452,3]
[347566579,1735920642538,-500.0,0.00019452,3]
[347566581,1735920642547,-673.21,0.00019452,3]
[347566583,1735920642557,-500.0,0.00019452,3]
[347566585,1735920642567,-500.0,0.00019452,3]
[347566587,1735920642576,-500.0,0.00019452,3]
[347566589,1735920642585,-500.0,0.00019452,3]
[347566591,1735920642594,-892.93,0.00019452,3]
[347566593,1735920642604,-151.0,0.00019452,2]
[347566595,1735920642613,-500.0,0.00019452,3]
[347566597,1735920642622,-500.0,0.00019452,3]
[347566599,1735920642631,-500.0,0.00019452,3]
[347566601,1735920642641,-500.0,0.00019452,3]
[347566603,1735920642651,-500.0,0.00019452,3]
[347566605,1735920642662,-500.0,0.00019452,3]
[347566607,1735920642671,-500.0,0.00019452,3]
[347566609,1735920642680,-6470.67,0.00019452,3]
[347566611,1735920642689,-500.0,0.00019452,3]
[347566613,1735920642699,-500.0,0.00019452,3]
[347566615,1735920642708,-500.0,0.00019452,3]
[347566617,1735920642717,-500.0,0.00019452,3]
[347566619,1735920642726,-500.0,0.00019452,3]
[347566621,1735920642735,-503.92383103,0.00019452,3]
[347566623,1735920642745,-500.0,0.00019452,3]
[347566625,1735920642754,-151.0,0.00019452,2]
[347566627,1735920642763,-751.18,0.00019452,3]
[347566629,1735920642773,-500.0,0.00019452,3]
[347566631,1735920642782,-500.0,0.00019452,3]
[347566634,1735920642791,-500.0,0.00019452,3]
[347566636,1735920642801,-500.0,0.00019452,3]
[347566638,1735920642810,-2211.08,0.00019452,3]
[347566640,1735920642819,-500.0,0.00019452,3]
[347566642,1735920642829,-500.0,0.00019452,3]
[347566645,1735920642838,-500.0,0.00019452,3]
[347566647,1735920642847,-500.0,0.00019452,3]
[347566649,1735920642857,-584.95,0.00019452,3]
[347566651,1735920642866,-500.0,0.00019452,3]
[347566653,1735920642875,-500.0,0.00019452,3]
[347566655,1735920642885,-500.0,0.00019452,3]
[347566657,1735920642894,-1393.72,0.00019452,3]
[347566659,1735920642904,-520.50189285,0.00019452,3]
[347566661,1735920642915,-500.0,0.00019452,3]
[347566663,1735920642925,-500.0,0.00019452,3]
[347566665,1735920642936,-500.0,0.00019452,3]
[347566667,1735920642945,-500.0,0.00019452,3]
[347566670,1735920642954,-509.4326958,0.00019452,3]
[347566672,1735920642963,-500.0,0.00019452,3]
[347566674,1735920642972,-500.0,0.00019452,3]
[347566676,1735920642982,-501.82679222,0.00019452,3]
[347566678,1735920642994,-500.0,0.00019452,3]
[347566680,1735920643004,-500.0,0.00019452,3]
[347566682,1735920643013,-500.0,0.00019452,3]
[347566684,1735920643022,-500.0,0.00019452,3]
[347566686,1735920643032,-500.0,0.00019452,3]
[347566690,1735920643042,-500.0,0.00019452,3]
[347566693,1735920643052,-500.0,0.00019452,3]
[347566697,1735920643061,-1078.67,0.00019452,3]
[347566701,1735920643071,-151.0,0.00019452,2]
[347566704,1735920643080,-500.0,0.00019452,3]
[347566707,1735920643089,-500.0,0.00019452,3]
[347566710,1735920643098,-500.0,0.00019452,3]
[347566714,1735920643108,-500.0,0.00019452,3]
[347566718,1735920643117,-500.0,0.00019452,3]
[347566720,1735920643127,-500.0,0.00019452,3]
[347566723,1735920643136,-500.0,0.00019452,3]
[347566725,1735920643145,-470.85419916,0.00019452,3]
[347566727,1735920643154,-500.0,0.00019452,3]
[347566729,1735920643165,-500.0,0.00019452,3]
[347566731,1735920643178,-500.0,0.00019452,3]
[347566734,1735920643188,-2287.73,0.00019452,3]
[347566735,1735920643197,-500.0,0.00019452,3]
[347566737,1735920643207,-500.0,0.00019452,3]
[347566739,1735920643217,-500.0,0.00019452,3]
[347566741,1735920643226,-500.0,0.00019452,3]
[347566743,1735920643236,-506.75529478,0.00019452,3]
[347566745,1735920643246,-502.63693995,0.00019452,3]
[347566748,1735920643256,-503.366253,0.00019452,3]
[347566750,1735920643266,-500.0,0.00019452,3]
[347566751,1735920643276,-500.0,0.00019452,3]
[347566753,1735920643286,-500.0,0.00019452,3]
[347566756,1735920643296,-500.0,0.00019452,3]
[347566757,1735920643306,-2708.2,0.00019452,3]
[347566760,1735920643316,-500.0,0.00019452,3]
[347566761,1735920643326,-500.0,0.00019452,3]
[347566764,1735920643336,-500.0,0.00019452,3]
[347566766,1735920643345,-500.0,0.00019452,3]
[347566768,1735920643356,-500.0,0.00019452,3]
[347566770,1735920643365,-500.0,0.00019452,3]
[347566772,1735920643374,-500.0,0.00019452,3]
[347566773,1735920643384,-500.0,0.00019452,3]
[347566775,1735920643394,-1928.07,0.00019452,3]
[347566777,1735920643403,-527.68,0.00019452,3]
[347566779,1735920643413,-500.0,0.00019452,3]
[347566781,1735920643423,-1248.05,0.00019452,3]
[347566783,1735920643435,-500.0,0.00019452,3]
[347566789,1735920643478,-500.0,0.00019452,3]
[347566790,1735920643489,-562.92,0.00019452,3]
[347566792,1735920643499,-704.95,0.00019452,3]
[347566794,1735920643509,-434.00379634,0.00019452,3]
[347566796,1735920643518,-151.0,0.00019452,2]
[347566798,1735920643528,-500.0,0.00019452,3]
[347566800,1735920643538,-500.0,0.00019452,3]
[347566802,1735920643547,-500.0,0.00019452,3]
[347566804,1735920643556,-500.60304527,0.00019452,3]
[347566806,1735920643565,-500.0,0.00019452,3]
[347566808,1735920643575,-2888.12,0.00019452,3]
[347566810,1735920643584,-500.0,0.00019452,3]
[347566812,1735920643594,-500.0,0.00019452,3]
[347566814,1735920643603,-500.0,0.00019452,3]
[347566816,1735920643613,-500.0,0.00019452,3]
[347566818,1735920643622,-500.0,0.00019452,3]
[347566820,1735920643635,-500.0,0.00019452,3]
[347566822,1735920643645,-2580.17,0.00019452,3]
[347566824,1735920643654,-151.0,0.00019452,2]
[347566826,1735920643664,-500.0,0.00019473,2]
[347566828,1735920643673,-500.0,0.00019473,2]
[347566830,1735920643683,-615.31913201,0.00019473,2]